[Event "2nd Bieszczady Chess-ch B 2022"]
[Site "Bystre"]
[Date "2022.07.22"]
[Round "7.5"]
[White "Panczuk, Grzegorz"]
[Black "Labedz, Dawid"]
[Result "1-0"]
[ECO "A45"]
[WhiteElo "1684"]
[BlackElo "1562"]
[Annotator "NA RC COMBH"]
[PlyCount "119"]
[EventDate "2022.07.17"]
[EventCountry "POL"]
[SourceTitle "playchess.com"]
[Source "ChessBase"]
[SourceQuality "1"]
[TimeControl "5400+30"]

1. d4 {[%emt 0:00:04]} Nf6 {[%emt 0:00:06]} 2. Bg5 {[%emt 0:00:11]} d5 {[%emt 0:00:19]} 3. Bxf6 {[%emt 0:00:14]} exf6 {[%emt 0:00:17]} 4. e3 {[%emt 0:00:05]} Bd6 {[%emt 0:00:29]} 5. g3 {[%emt 0:00:11]} c6 {[%emt 0:04:04]} 6. Bg2 {[%emt 0:01:08]} O-O {[%emt 0:03:19]} 7. Ne2 {[%emt 0:10:47]} Re8 {[%emt 0:01:45]} 8. O-O {[%emt 0:00:54]} f5 {[%emt 0:02:46]} 9. b3 {[%emt 0:01:32]} Qc7 {[%emt 0:04:40]} 10. c4 {[%emt 0:03:18]} dxc4 {[%emt 0:00:20]} 11. bxc4 {[%emt 0:00:06]} Nd7 {[%emt 0:06:07]} 12. Nbc3 {[%emt 0:04:53]} a6 {[%emt 0:02:52]} 13. Qc2 {[%emt 0:03:28]} Nf6 {[%emt 0:02:50]} 14. c5 {[%emt 0:07:21]} Bf8 15. Na4 {[%emt 0:01:34]} Be6 {[%emt 0:08:35]} 16. Nb6 {[%emt 0:02:18]} Rad8 {[%emt 0:00:22]} 17. Nf4 {[%emt 0:01:10]} g6 {[%emt 0:06:42]} 18. Rab1 {[%emt 0:05:40]} Bh6 {[%emt 0:04:08]} 19. Nxe6 {[%emt 0:03:00]} fxe6 {[%emt 0:03:40]} 20. Nc4 {[%emt 0:02:11]} Re7 {[%emt 0:06:13]} 21. Rb6 {[%emt 0:17:10]} Nd5 {[%emt 0:26:41]} 22. Bxd5 {[%emt 0:04:27]} cxd5 {[%emt 0:00:16]} 23. Nd6 {[%emt 0:01:49]} Qxb6 {[%emt 0:02:59]} 24. cxb6 {[%emt 0:00:33]} Rxd6 {[%emt 0:00:01]} 25. Qc5 {[%emt 0:01:28]} Rdd7 {[%emt 0:03:08]} 26. Rc1 {[%emt 0:02:10]} Re8 {[%emt 0:01:48]} 27. Qa5 {[%emt 0:01:58]} Kf7 {[%emt 0:02:13]} 28. Rc7 {[%emt 0:02:35]} Red8 {[%emt 0:00:44]} 29. Qa4 {[%emt 0:00:57]} Ke7 {[%emt 0:00:14]} 30. Qb4+ {[%emt 0:00:24]} Ke8 {[%emt 0:00:25]} 31. Qc3 {[%emt 0:03:38]} Bf8 {[%emt 0:01:12]} 32. h3 {[%emt 0:01:16]} Bd6 {[%emt 0:00:43]} 33. Rc8 {[%emt 0:00:55]} Bb8 {[%emt 0:01:05]} 34. g4 {[%emt 0:02:57]} Rd6 {[%emt 0:00:16]} 35. Qc5 {[%emt 0:01:34]} R6d7 {[%emt 0:01:02]} 36. a4 {[%emt 0:00:57]} f4 {[%emt 0:00:50]} 37. exf4 {[%emt 0:01:23]} Bxf4 {[%emt 0:00:17]} 38. Qc2 {[%emt 0:02:53]} Kf7 {[%emt 0:00:52]} 39. Kg2 {[%emt 0:00:38]} Bb8 {[%emt 0:01:51]} 40. Rc3 {[%emt 0:00:58]} e5 {[%emt 0:01:15]} 41. dxe5 {[%emt 0:00:22]} Bxe5 {[%emt 0:00:07]} 42. Rf3+ {[%emt 0:01:02]} Kg8 {[%emt 0:01:10]} 43. Qe2 {[%emt 0:00:24]} Re7 {[%emt 0:01:09]} 44. Re3 {[%emt 0:00:40]} Rde8 {[%emt 0:00:12]} 45. f4 {[%emt 0:00:29]} Bf6 {[%emt 0:00:30]} 46. Rxe7 {[%emt 0:00:58]} Rxe7 {[%emt 0:00:06]} 47. Qd3 {[%emt 0:00:48]} d4 {[%emt 0:00:23]} 48. g5 {[%emt 0:01:44]} Bg7 {[%emt 0:00:11]} 49. f5 {[%emt 0:00:49]} gxf5 {[%emt 0:00:14]} 50. Qxf5 {[%emt 0:00:04]} Be5 {[%emt 0:01:31]} 51. h4 {[%emt 0:01:03]} Bg7 {[%emt 0:01:34]} 52. h5 {[%emt 0:00:33]} h6 {[%emt 0:01:03]} 53. gxh6 {[%emt 0:02:21]} Bxh6 {[%emt 0:00:51]} 54. Qd5+ {[%emt 0:00:08]} Rf7 {[%emt 0:00:32]} 55. Qxd4 {[%emt 0:00:16]} Bg5 {[%emt 0:00:12]} 56. Qd5 {[%emt 0:00:23]} Bf6 {[%emt 0:00:19]} 57. Kh3 {[%emt 0:00:29]} Kf8 {[%emt 0:00:36]} 58. h6 {[%emt 0:00:46]} Kg8 {[%emt 0:00:39]} 59. Kg4 {[%emt 0:00:31]} Kf8 {[%emt 0:00:41]} 60. Kh5 1-0

[Event "2nd Bieszczady Chess-ch B 2022"]
[Site "Bystre"]
[Date "2022.07.22"]
[Round "7.6"]
[White "Zajac, Karol"]
[Black "Kucza, Arkadiusz"]
[Result "1/2-1/2"]
[ECO "C64"]
[WhiteElo "1579"]
[BlackElo "1500"]
[Annotator "NA RC COMBH"]
[PlyCount "161"]
[EventDate "2022.07.17"]
[EventCountry "POL"]
[SourceTitle "playchess.com"]
[Source "ChessBase"]
[SourceQuality "1"]
[TimeControl "5400+30"]

1. e4 {[%emt 0:00:06]} e5 {[%emt 0:01:38]} 2. Nf3 {[%emt 0:00:13]} Nc6 {[%emt 0:00:05]} 3. Bb5 {[%emt 0:00:22]} Bc5 4. c3 {[%emt 0:01:17]} d6 {[%emt 0:04:12]} 5. O-O {[%emt 0:01:53]} Bd7 {[%emt 0:00:42]} 6. d4 {[%emt 0:01:56]} exd4 {[%emt 0:01:33]} 7. cxd4 {[%emt 0:00:09]} Bb6 {[%emt 0:00:18]} 8. Nc3 {[%emt 0:01:27]} Nf6 {[%emt 0:01:54]} 9. Re1 {[%emt 0:11:42]} O-O {[%emt 0:04:35]} 10. h3 {[%emt 0:06:27]} h6 {[%emt 0:00:36]} 11. Ba4 {[%emt 0:04:41]} Re8 {[%emt 0:03:36]} 12. Bc2 {[%emt 0:00:54]} Ne7 {[%emt 0:08:01]} 13. Be3 {[%emt 0:07:06]} Ng6 {[%emt 0:00:55]} 14. e5 {[%emt 0:13:56]} Nh5 {[%emt 0:06:46]} 15. Bxg6 {[%emt 0:14:20]} fxg6 {[%emt 0:00:07]} 16. g4 {[%emt 0:00:16]} Rf8 {[%emt 0:02:52]} 17. gxh5 {[%emt 0:00:57]} Bxh3 {[%emt 0:00:07]} 18. Nh2 {[%emt 0:14:02]} dxe5 {[%emt 0:01:06]} 19. dxe5 {[%emt 0:00:22]} Qh4 {[%emt 0:00:11]} 20. Qd5+ {[%emt 0:06:03]} Kh8 {[%emt 0:00:22]} 21. Qe4 {[%emt 0:01:08]} Qxh5 {[%emt 0:00:35]} 22. Nd5 {[%emt 0:02:36]} Bf5 {[%emt 0:01:24]} 23. Qg2 {[%emt 0:00:29]} Be6 {[%emt 0:00:33]} 24. Nf4 {[%emt 0:00:25]} Rxf4 {[%emt 0:00:52]} 25. Bxf4 {[%emt 0:00:10]} Rf8 {[%emt 0:00:03]} 26. Qg3 {[%emt 0:02:03]} Bxf2+ {[%emt 0:01:43]} 27. Qxf2 {[%emt 0:00:52]} g5 {[%emt 0:00:21]} 28. Qe2 {[%emt 0:01:24]} Qxe2 {[%emt 0:00:20]} 29. Rxe2 {[%emt 0:00:08]} gxf4 {[%emt 0:00:02]} 30. b3 {[%emt 0:01:55]} g5 {[%emt 0:00:13]} 31. Rd1 {[%emt 0:00:24]} f3 {[%emt 0:00:45]} 32. Red2 {[%emt 0:01:10]} Kg7 {[%emt 0:00:28]} 33. Rd8 {[%emt 0:01:12]} Rf7 {[%emt 0:00:52]} 34. Kf2 {[%emt 0:00:25]} g4 {[%emt 0:00:20]} 35. Rb8 {[%emt 0:01:09]} h5 {[%emt 0:01:03]} 36. Kg3 {[%emt 0:00:56]} Kg6 {[%emt 0:00:13]} 37. Rh8 {[%emt 0:01:31]} Rf5 {[%emt 0:00:25]} 38. Re1 {[%emt 0:01:17]} Kg5 {[%emt 0:00:35]} 39. Re4 {[%emt 0:01:12]} f2 {[%emt 0:01:23]} 40. Re2 {[%emt 0:00:37]} f1=Q {[%emt 0:02:02]} 41. Nxf1 {[%emt 0:00:20]} Rxf1 {[%emt 0:00:02]} 42. Rh2 {[%emt 0:00:41]} Rf3+ {[%emt 0:04:48]} 43. Kg2 {[%emt 0:00:08]} Bf7 {[%emt 0:00:14]} 44. e6 {[%emt 0:00:41]} Bxe6 {[%emt 0:00:06]} 45. R2xh5+ {[%emt 0:00:04]} Kf4 {[%emt 0:05:44]} 46. Rf8+ {[%emt 0:00:26]} Ke4 {[%emt 0:00:04]} 47. Re8 {[%emt 0:00:12]} Rf6 {[%emt 0:00:03]} 48. Rh7 {[%emt 0:00:36]} Kd4 {[%emt 0:00:55]} 49. Rxc7 {[%emt 0:00:17]} Bd5+ {[%emt 0:01:17]} 50. Kg3 {[%emt 0:00:02]} Rf3+ {[%emt 0:00:08]} 51. Kxg4 {[%emt 0:00:16]} Rf2 {[%emt 0:00:03]} 52. a4 {[%emt 0:01:11]} Rg2+ {[%emt 0:02:17]} 53. Kf5 {[%emt 0:01:13]} Rf2+ {[%emt 0:00:18]} 54. Kg5 {[%emt 0:00:07]} Rg2+ {[%emt 0:01:08]} 55. Kf6 {[%emt 0:01:14]} Rf2+ {[%emt 0:00:37]} 56. Kg5 {[%emt 0:00:37]} Rg2+ {[%emt 0:00:04]} 57. Kh4 {[%emt 0:00:14]} Rh2+ {[%emt 0:00:07]} 58. Kg4 {[%emt 0:00:19]} Rg2+ {[%emt 0:00:04]} 59. Kh3 {[%emt 0:00:07]} Rb2 {[%emt 0:00:06]} 60. Rd8 {[%emt 0:01:41]} Rxb3+ {[%emt 0:01:00]} 61. Kg4 {[%emt 0:00:18]} Ke5 {[%emt 0:03:19]} 62. Rc5 {[%emt 0:00:33]} Rd3 {[%emt 0:01:18]} 63. Rb5 {[%emt 0:00:49]} Ke6 {[%emt 0:01:20]} 64. Re8+ {[%emt 0:00:33]} Kd7 {[%emt 0:00:32]} 65. Re5 {[%emt 0:00:24]} Rd4+ {[%emt 0:00:33]} 66. Kf5 {[%emt 0:00:11]} Bc6 {[%emt 0:00:05]} 67. Ra5 {[%emt 0:00:39]} a6 {[%emt 0:00:07]} 68. Kf6 {[%emt 0:00:33]} Kc7 {[%emt 0:00:22]} 69. Rh5 {[%emt 0:00:48]} Kb6 {[%emt 0:00:22]} 70. Ke5 {[%emt 0:00:28]} Re4+ {[%emt 0:01:35]} 71. Kd6 {[%emt 0:00:06]} Bb5 {[%emt 0:03:04]} 72. axb5 {[%emt 0:00:50]} Kxa5 {[%emt 0:00:12]} 73. bxa6+ {[%emt 0:00:08]} Kxa6 {[%emt 0:00:07]} 74. Kd5 {[%emt 0:00:53]} Ra4 {[%emt 0:00:27]} 75. Rh8 {[%emt 0:00:07]} b5 {[%emt 0:00:19]} 76. Ra8+ {[%emt 0:00:15]} Kb6 {[%emt 0:00:06]} 77. Rxa4 {[%emt 0:00:06]} bxa4 {[%emt 0:00:03]} 78. Kc4 {[%emt 0:00:09]} Ka5 {[%emt 0:00:11]} 79. Kc3 {[%emt 0:00:05]} a3 {[%emt 0:00:02]} 80. Kb3 {[%emt 0:00:03]} Kb5 {[%emt 0:00:01]} 81. Kxa3 {[%emt 0:00:08]} 1/2-1/2

[Event "2nd Bieszczady Chess-ch B 2022"]
[Site "Bystre"]
[Date "2022.07.22"]
[Round "7.7"]
[White "Warchol, Jacek"]
[Black "Labedz, Gabriela"]
[Result "1-0"]
[ECO "B28"]
[WhiteElo "1785"]
[BlackElo "1346"]
[Annotator "NA RC COMBH"]
[PlyCount "67"]
[EventDate "2022.07.17"]
[EventCountry "POL"]
[SourceTitle "playchess.com"]
[Source "ChessBase"]
[SourceQuality "1"]
[TimeControl "5400+30"]

1. e4 {[%emt 0:03:42]} c5 {[%emt 0:00:05]} 2. Nf3 {[%emt 0:00:06]} a6 {[%emt 0:00:03]} 3. d4 {[%emt 0:00:19]} cxd4 {[%emt 0:00:05]} 4. Nxd4 {[%emt 0:00:02]} Nf6 {[%emt 0:00:12]} 5. Nc3 {[%emt 0:00:12]} e5 {[%emt 0:00:13]} 6. Nb3 {[%emt 0:00:51]} Bb4 {[%emt 0:00:54]} 7. Qd3 {[%emt 0:01:00]} Qc7 {[%emt 0:03:42]} 8. Bd2 {[%emt 0:00:31]} O-O {[%emt 0:02:39]} 9. Be2 {[%emt 0:00:34]} Nc6 {[%emt 0:01:58]} 10. O-O {[%emt 0:00:26]} Ne7 {[%emt 0:02:31]} 11. Bg5 {[%emt 0:03:55]} Qc6 {[%emt 0:02:19]} 12. Qc4 {[%emt 0:05:55]} Bxc3 {[%emt 0:05:49]} 13. bxc3 {[%emt 0:04:01]} Re8 {[%emt 0:07:50]} 14. Qxc6 {[%emt 0:00:12]} bxc6 {[%emt 0:02:30]} 15. Bxf6 {[%emt 0:01:34]} gxf6 {[%emt 0:00:06]} 16. Rad1 {[%emt 0:01:42]} f5 {[%emt 0:02:57]} 17. Nc5 {[%emt 0:04:08]} d5 {[%emt 0:04:22]} 18. f3 {[%emt 0:03:19]} f6 {[%emt 0:07:27]} 19. Rb1 {[%emt 0:01:55]} Kf7 {[%emt 0:02:09]} 20. Rb6 {[%emt 0:01:31]} a5 {[%emt 0:00:52]} 21. a4 {[%emt 0:00:02]} Rg8 {[%emt 0:05:18]} 22. Rfb1 {[%emt 0:05:28]} fxe4 {[%emt 0:03:14]} 23. fxe4 {[%emt 0:00:18]} Bg4 {[%emt 0:01:40]} 24. Bf1 {[%emt 0:01:52]} Bf3 {[%emt 0:06:05]} 25. Kf2 {[%emt 0:00:50]} Bh5 {[%emt 0:00:55]} 26. h3 {[%emt 0:04:47]} Rgd8 {[%emt 0:03:09]} 27. Rb7 {[%emt 0:02:02]} dxe4 {[%emt 0:05:17]} 28. Bc4+ {[%emt 0:03:03]} Ke8 {[%emt 0:01:37]} 29. Nxe4 {[%emt 0:00:30]} Bg6 {[%emt 0:03:23]} 30. Nxf6+ {[%emt 0:02:30]} Kf8 {[%emt 0:00:04]} 31. Nd7+ {[%emt 0:00:34]} Ke8 {[%emt 0:00:31]} 32. Nxe5 {[%emt 0:03:30]} Bxc2 {[%emt 0:00:33]} 33. Re1 {[%emt 0:02:30]} Kf8 {[%emt 0:02:15]} 34. Nd7+ {[%emt 0:03:14]} 1-0

[Event "2nd Bieszczady Chess-ch B 2022"]
[Site "Bystre"]
[Date "2022.07.22"]
[Round "7.9"]
[White "Tokarz, Gabriela"]
[Black "Kotyla, Jan"]
[Result "1-0"]
[ECO "E12"]
[WhiteElo "1412"]
[BlackElo "1398"]
[Annotator "NA RC COMBH"]
[PlyCount "55"]
[EventDate "2022.07.17"]
[EventCountry "POL"]
[SourceTitle "playchess.com"]
[Source "ChessBase"]
[SourceQuality "1"]
[TimeControl "5400+30"]

1. d4 {[%emt 0:00:02]} Nf6 {[%emt 0:00:23]} 2. c4 {[%emt 0:00:07]} e6 {[%emt 0:00:05]} 3. Nf3 {[%emt 0:00:06]} b6 {[%emt 0:00:14]} 4. a3 {[%emt 0:00:09]} Bb7 {[%emt 0:00:22]} 5. Nc3 {[%emt 0:00:07]} d5 {[%emt 0:02:30]} 6. Bg5 {[%emt 0:00:52]} Be7 {[%emt 0:01:14]} 7. cxd5 {[%emt 0:00:25]} Nxd5 {[%emt 0:00:32]} 8. Bxe7 {[%emt 0:00:29]} Qxe7 {[%emt 0:00:22]} 9. Nxd5 {[%emt 0:00:10]} Bxd5 {[%emt 0:00:29]} 10. e3 {[%emt 0:00:19]} c5 {[%emt 0:01:09]} 11. Bb5+ {[%emt 0:01:03]} Kf8 {[%emt 0:05:48]} 12. Rc1 {[%emt 0:01:43]} a6 {[%emt 0:01:21]} 13. Be2 {[%emt 0:00:30]} Nd7 {[%emt 0:02:03]} 14. O-O {[%emt 0:01:06]} g6 {[%emt 0:01:02]} 15. dxc5 {[%emt 0:04:59]} bxc5 {[%emt 0:02:34]} 16. Qd2 {[%emt 0:01:10]} f6 {[%emt 0:10:12]} 17. Rfd1 {[%emt 0:00:39]} f5 {[%emt 0:04:03]} 18. Qc3 {[%emt 0:04:14]} Kf7 {[%emt 0:03:14]} 19. Bxa6 {[%emt 0:04:15]} Nf6 {[%emt 0:09:37]} 20. Ne5+ {[%emt 0:01:53]} Kg8 {[%emt 0:02:07]} 21. Bc4 {[%emt 0:00:44]} Rc8 {[%emt 0:00:56]} 22. Bxd5 {[%emt 0:02:34]} exd5 {[%emt 0:00:44]} 23. Nf3 {[%emt 0:00:28]} h6 {[%emt 0:03:39]} 24. Qe5 {[%emt 0:10:24]} Qxe5 {[%emt 0:04:01]} 25. Nxe5 {[%emt 0:00:10]} Kg7 {[%emt 0:00:27]} 26. Nd3 {[%emt 0:00:17]} c4 {[%emt 0:00:31]} 27. Nf4 {[%emt 0:00:15]} Rhd8 {[%emt 0:00:09]} 28. Ne6+ {[%emt 0:00:10]} 1-0

[Event "2nd Bieszczady Chess-ch B 2022"]
[Site "Bystre"]
[Date "2022.07.22"]
[Round "7.10"]
[White "Ochalik, Filip"]
[Black "Tymrakiewicz, Marianna"]
[Result "1/2-1/2"]
[ECO "D53"]
[WhiteElo "1342"]
[BlackElo "1819"]
[Annotator "NA RC COMBH"]
[PlyCount "67"]
[EventDate "2022.07.17"]
[EventCountry "POL"]
[SourceTitle "playchess.com"]
[Source "ChessBase"]
[SourceQuality "1"]
[TimeControl "5400+30"]

1. d4 {[%emt 0:02:57]} d5 {[%emt 0:00:07]} 2. c4 {[%emt 0:00:26]} e6 {[%emt 0:00:05]} 3. Nc3 {[%emt 0:00:30]} Nf6 {[%emt 0:00:05]} 4. Bg5 {[%emt 0:00:58]} Be7 {[%emt 0:00:08]} 5. e3 {[%emt 0:00:25]} O-O {[%emt 0:00:27]} 6. Bd3 {[%emt 0:01:19]} b6 {[%emt 0:02:36]} 7. Nge2 {[%emt 0:02:54]} h6 {[%emt 0:05:27]} 8. Bh4 {[%emt 0:01:04]} Bb7 {[%emt 0:00:33]} 9. O-O {[%emt 0:02:08]} Nbd7 {[%emt 0:07:45]} 10. b3 {[%emt 0:06:55]} c5 {[%emt 0:06:53]} 11. Rc1 {[%emt 0:04:03]} a6 {[%emt 0:07:44]} 12. cxd5 {[%emt 0:13:19]} Nxd5 {[%emt 0:07:52]} 13. Bxe7 {[%emt 0:00:36]} Qxe7 {[%emt 0:01:02]} 14. Nxd5 {[%emt 0:03:02]} Bxd5 {[%emt 0:00:41]} 15. Re1 {[%emt 0:04:19]} Qg5 {[%emt 0:06:53]} 16. Nf4 {[%emt 0:06:22]} Bb7 {[%emt 0:00:35]} 17. b4 {[%emt 0:00:53]} e5 {[%emt 0:07:24]} 18. dxe5 {[%emt 0:04:04]} Nxe5 {[%emt 0:00:36]} 19. h4 {[%emt 0:00:33]} Qxh4 {[%emt 0:03:25]} 20. bxc5 {[%emt 0:02:18]} bxc5 {[%emt 0:01:04]} 21. Rxc5 {[%emt 0:01:19]} Nxd3 {[%emt 0:05:19]} 22. Qxd3 {[%emt 0:02:01]} Rac8 {[%emt 0:02:25]} 23. Rxc8 {[%emt 0:03:55]} Bxc8 {[%emt 0:00:33]} 24. Rc1 {[%emt 0:02:03]} Qg5 {[%emt 0:13:30]} 25. Rc7 {[%emt 0:04:07]} Qa5 {[%emt 0:01:18]} 26. Qc4 {[%emt 0:01:39]} Bf5 {[%emt 0:03:04]} 27. Kh2 {[%emt 0:01:37]} Qe1 {[%emt 0:02:10]} 28. Kg3 {[%emt 0:02:46]} Qd1 {[%emt 0:01:04]} 29. Nd5 {[%emt 0:02:44]} Be6 {[%emt 0:00:52]} 30. Ne7+ {[%emt 0:01:20]} Kh8 {[%emt 0:00:10]} 31. Qf4 {[%emt 0:04:56]} Qh5 {[%emt 0:01:27]} 32. Ra7 {[%emt 0:03:50]} Re8 {[%emt 0:02:36]} 33. Nc6 {[%emt 0:01:57]} Qg6+ {[%emt 0:00:30]} 34. Kh2 {[%emt 0:01:08]} 1/2-1/2

[Event "2nd Bieszczady Chess-ch B 2022"]
[Site "Bystre"]
[Date "2022.07.22"]
[Round "7.11"]
[White "Michalski, Jacek"]
[Black "Sypek, Szymon"]
[Result "1/2-1/2"]
[ECO "E91"]
[WhiteElo "1320"]
[BlackElo "1726"]
[Annotator "NA RC COMBH"]
[PlyCount "54"]
[EventDate "2022.07.17"]
[EventCountry "POL"]
[SourceTitle "playchess.com"]
[Source "ChessBase"]
[SourceQuality "1"]
[TimeControl "5400+30"]

1. d4 {[%emt 0:00:03]} Nf6 {[%emt 0:00:29]} 2. c4 {[%emt 0:00:05]} g6 {[%emt 0:00:19]} 3. Nc3 {[%emt 0:00:09]} Bg7 {[%emt 0:00:16]} 4. e4 {[%emt 0:00:23]} d6 {[%emt 0:00:22]} 5. Nf3 {[%emt 0:00:19]} O-O {[%emt 0:00:06]} 6. Be2 {[%emt 0:00:31]} Nbd7 {[%emt 0:01:20]} 7. O-O {[%emt 0:02:24]} e5 {[%emt 0:01:25]} 8. d5 {[%emt 0:01:19]} Nc5 {[%emt 0:03:16]} 9. Qc2 {[%emt 0:01:43]} a5 {[%emt 0:01:00]} 10. Be3 {[%emt 0:01:36]} b6 {[%emt 0:00:18]} 11. Nd2 {[%emt 0:01:41]} Ng4 {[%emt 0:01:18]} 12. Bxg4 {[%emt 0:00:57]} Bxg4 {[%emt 0:00:07]} 13. f3 {[%emt 0:00:08]} Bd7 {[%emt 0:00:26]} 14. b3 {[%emt 0:01:36]} f5 {[%emt 0:03:46]} 15. a3 {[%emt 0:02:18]} f4 {[%emt 0:06:57]} 16. Bf2 {[%emt 0:01:54]} g5 {[%emt 0:01:37]} 17. b4 {[%emt 0:00:44]} Nb7 {[%emt 0:00:18]} 18. Ne2 {[%emt 0:01:40]} Rf6 {[%emt 0:02:27]} 19. Rfc1 {[%emt 0:01:39]} Bf8 {[%emt 0:01:23]} 20. Qc3 {[%emt 0:03:01]} Rh6 {[%emt 0:02:03]} 21. g4 {[%emt 0:09:12]} Rh3 {[%emt 0:07:33]} 22. Kg2 {[%emt 0:01:35]} Rh6 {[%emt 0:08:10]} 23. h3 {[%emt 0:01:24]} Rg6 {[%emt 0:05:06]} 24. Nb3 {[%emt 0:02:50]} a4 {[%emt 0:06:07]} 25. Nd2 {[%emt 0:03:02]} Rb8 {[%emt 0:06:18]} 26. Rc2 {[%emt 0:06:58]} Qc8 {[%emt 0:02:38]} 27. Nf1 {[%emt 0:04:43]} h5 {[%emt 0:03:13]} 1/2-1/2

[Event "2nd Bieszczady Chess-ch B 2022"]
[Site "Bystre"]
[Date "2022.07.23"]
[Round "8.1"]
[White "Kulig, Pawel"]
[Black "Biesiadecki, Adam"]
[Result "1/2-1/2"]
[ECO "E32"]
[WhiteElo "1720"]
[BlackElo "1776"]
[Annotator "NA RC COMBH"]
[PlyCount "131"]
[EventDate "2022.07.17"]
[EventCountry "POL"]
[SourceTitle "playchess.com"]
[Source "ChessBase"]
[SourceQuality "1"]
[TimeControl "5400+30"]

1. d4 {[%emt 0:00:05]} Nf6 {[%emt 0:00:04]} 2. c4 {[%emt 0:00:11]} e6 {[%emt 0:00:08]} 3. Nc3 {[%emt 0:00:13]} Bb4 {[%emt 0:00:07]} 4. Qc2 {[%emt 0:00:20]} O-O {[%emt 0:00:09]} 5. Nf3 {[%emt 0:00:06]} c5 {[%emt 0:00:15]} 6. e3 {[%emt 0:00:21]} Nc6 {[%emt 0:00:06]} 7. Bd3 {[%emt 0:01:40]} d5 {[%emt 0:01:55]} 8. cxd5 {[%emt 0:00:50]} Qxd5 {[%emt 0:01:56]} 9. O-O {[%emt 0:00:52]} Qh5 {[%emt 0:01:00]} 10. Ne4 {[%emt 0:13:02]} Nxe4 {[%emt 0:11:01]} 11. Bxe4 {[%emt 0:00:12]} cxd4 {[%emt 0:00:59]} 12. exd4 {[%emt 0:03:47]} Bd7 {[%emt 0:03:03]} 13. Be3 {[%emt 0:07:03]} Rac8 {[%emt 0:08:22]} 14. Qd1 {[%emt 0:08:41]} Rfd8 {[%emt 0:09:18]} 15. Ng5 {[%emt 0:02:45]} Qxd1 {[%emt 0:00:53]} 16. Rfxd1 {[%emt 0:00:21]} h6 {[%emt 0:01:16]} 17. Nf3 {[%emt 0:01:31]} f5 {[%emt 0:04:44]} 18. Bxc6 {[%emt 0:07:15]} Bxc6 {[%emt 0:00:44]} 19. Ne5 {[%emt 0:00:14]} Bd5 {[%emt 0:00:11]} 20. a3 {[%emt 0:00:48]} Ba5 {[%emt 0:02:27]} 21. Rac1 {[%emt 0:00:48]} Bb6 {[%emt 0:01:20]} 22. Nd3 {[%emt 0:13:14]} g5 {[%emt 0:15:40]} 23. f3 {[%emt 0:06:12]} Kf7 {[%emt 0:03:30]} 24. Bf2 {[%emt 0:03:19]} Bb3 {[%emt 0:04:21]} 25. Rxc8 {[%emt 0:00:43]} Rxc8 {[%emt 0:00:11]} 26. Rc1 {[%emt 0:01:36]} Rxc1+ {[%emt 0:00:49]} 27. Nxc1 {[%emt 0:00:02]} Bc4 {[%emt 0:05:06]} 28. b3 {[%emt 0:02:20]} Bb5 {[%emt 0:00:47]} 29. Na2 {[%emt 0:01:00]} Ba5 {[%emt 0:05:48]} 30. b4 {[%emt 0:01:43]} Bd8 {[%emt 0:01:45]} 31. Nc3 {[%emt 0:01:03]} Bc4 {[%emt 0:00:02]} 32. g3 {[%emt 0:02:19]} a5 {[%emt 0:01:08]} 33. Na4 {[%emt 0:02:31]} Ke7 {[%emt 0:01:11]} 34. Be1 {[%emt 0:00:31]} axb4 {[%emt 0:02:11]} 35. Bxb4+ {[%emt 0:00:24]} Kd7 {[%emt 0:00:56]} 36. Kf2 {[%emt 0:00:48]} Kc6 {[%emt 0:00:26]} 37. Nc3 {[%emt 0:00:28]} Bb6 {[%emt 0:00:39]} 38. Ne2 {[%emt 0:00:56]} Bxe2 {[%emt 0:00:43]} 39. Kxe2 {[%emt 0:00:07]} Bxd4 {[%emt 0:00:13]} 40. g4 {[%emt 0:00:25]} Bg7 {[%emt 0:00:27]} 41. a4 {[%emt 0:02:01]} Kd5 {[%emt 0:01:02]} 42. Kd3 {[%emt 0:00:07]} fxg4 {[%emt 0:00:47]} 43. fxg4 {[%emt 0:00:07]} e5 {[%emt 0:00:07]} 44. h3 {[%emt 0:00:27]} e4+ {[%emt 0:00:15]} 45. Ke3 {[%emt 0:00:10]} Bd4+ {[%emt 0:00:11]} 46. Ke2 {[%emt 0:00:07]} Bg7 {[%emt 0:06:32]} 47. Ke3 {[%emt 0:00:15]} b6 {[%emt 0:01:33]} 48. Ba3 {[%emt 0:01:23]} Bd4+ {[%emt 0:04:50]} 49. Ke2 {[%emt 0:00:08]} Ke5 {[%emt 0:00:44]} 50. Bf8 {[%emt 0:00:31]} Kf4 {[%emt 0:00:05]} 51. Bxh6 {[%emt 0:00:08]} Bf6 {[%emt 0:00:37]} 52. h4 {[%emt 0:10:36]} Kxg4 {[%emt 0:00:15]} 53. hxg5 {[%emt 0:00:05]} Bxg5 {[%emt 0:00:08]} 54. Bg7 {[%emt 0:00:04]} Kf4 {[%emt 0:01:06]} 55. Bd4 {[%emt 0:00:09]} Bd8 {[%emt 0:00:07]} 56. Kf2 {[%emt 0:00:20]} Bh4+ {[%emt 0:00:32]} 57. Ke2 {[%emt 0:00:07]} Bd8 {[%emt 0:00:02]} 58. Kf2 {[%emt 0:00:06]} Bc7 {[%emt 0:00:04]} 59. Ke2 {[%emt 0:00:13]} Kf5 {[%emt 0:00:36]} 60. Ke3 {[%emt 0:00:09]} Bd8 {[%emt 0:01:07]} 61. Bc3 {[%emt 0:00:56]} Bg5+ {[%emt 0:00:11]} 62. Ke2 {[%emt 0:00:16]} Bf6 {[%emt 0:01:25]} 63. a5 {[%emt 0:01:32]} bxa5 {[%emt 0:00:43]} 64. Bxa5 {[%emt 0:00:06]} e3 {[%emt 0:00:07]} 65. Kxe3 {[%emt 0:00:09]} Bc3 {[%emt 0:00:03]} 66. Bxc3 {[%emt 0:00:09]} 1/2-1/2